bitfinex-derivatives/quotes_SOLF0:USTF0_20260211
["timestamp","ask_amount","ask_price","bid_price","bid_amount"]
[1770768724955,3.86195405,83.103,83.071,4.07441001]
[1770768731353,3.86195405,83.103,83.062,10.8411]
[1770768731553,3.86195405,83.103,83.063,4.07441001]
[1770768733658,14.69805405,83.101,83.063,4.07441001]
[1770768733858,3.86195405,83.1,83.063,4.07441001]
[1770768735255,10.8364,83.099,83.063,4.07441001]
[1770768735456,3.86195405,83.098,83.063,4.07441001]
[1770768736964,3.86195405,83.098,83.04,22.04946333]
[1770768736965,14.69755405,83.106,83.071,4.07441001]
[1770768737149,3.86195405,83.105,83.071,4.07441001]
[1770768737551,10.8341,83.117,83.081,4.07441001]
[1770768737757,3.86195405,83.119,83.081,4.07441001]
[1770768738048,10.8349,83.11,83.081,4.07441001]
[1770768738760,3.86195405,83.109,83.071,4.07441001]
[1770768742260,10.8349,83.11,83.071,4.07441001]
[1770768743776,10.8349,83.11,83.066,14.73534518]
[1770768743777,4.02918343,83.109,83.066,14.73534518]
[1770768743962,12.2868685,83.12,83.012,36.74910556]
[1770768743963,4.02918343,83.095,83.045,3.86997305]
[1770768744265,4.02918343,83.089,83.045,3.86997305]
[1770768744867,10.8386,83.082,83.045,3.86997305]
[1770768745962,4.02918343,83.081,83.045,3.86997305]
[1770768746379,4.02918343,83.081,83.034,3.86997305]
[1770768747072,4.02918343,83.071,83.034,3.86997305]
[1770768752265,8.31,83.079,83.051,3.86997305]
[1770768752868,8.31,83.079,83.058,10.8417]
[1770768754674,8.31,83.079,83.051,3.86997305]
[1770768754973,8.31,83.079,83.048,10.843]
[1770768755166,8.31,83.079,83.04,2.9668685]
[1770768755365,8.31,83.079,83.041,3.86997305]
[1770768755673,6.99605193,83.11,83.063,3.86997305]
[1770768755870,4.02918343,83.11,83.07,2.9668685]
[1770768756467,4.02918343,83.132,83.096,10.8367]
[1770768756869,4.02918343,83.132,83.09,2.9668685]
[1770768757677,4.02918343,83.132,83.087,3.86997305]
[1770768757875,4.02918343,83.132,83.088,10.8377]
[1770768759875,4.02918343,83.132,83.09,2.9668685]
[1770768761177,4.02918343,83.132,83.09,6.83684155]
[1770768762680,4.02918343,83.132,83.092,10.8372]
[1770768778290,2.96563297,83.13,83.092,10.8372]
[1770768778487,3.92639406,83.129,83.092,10.8372]
[1770768778880,3.92639406,83.129,83.067,96.06]
[1770768779086,3.92639406,83.109,83.063,3.73195853]
[1770768780692,2.96563297,83.11,83.064,10.8408]
[1770768780693,3.92639406,83.107,83.064,10.8408]
[1770768780888,3.92639406,83.107,83.063,3.73195853]
[1770768781489,3.92639406,83.099,83.06,3.73195853]
[1770768781699,3.92639406,83.099,83.05,3.73195853]
[1770768782498,10.8382,83.085,83.05,3.73195853]
[1770768782801,3.92639406,83.084,83.043,10.8436]
[1770768783101,2.96563297,83.08,83.038,3.73195853]
[1770768783296,3.92639406,83.079,83.038,3.73195853]
[1770768783697,14.76539406,83.079,83.038,3.73195853]
[1770768783897,3.92639406,83.078,83.038,3.73195853]
[1770768784098,3.92639406,83.069,83.027,10.8457]
[1770768784398,3.92639406,83.069,83.028,3.73195853]
[1770768786603,3.92639406,83.069,83.03,2.96997772]
[1770768786901,3.92639406,83.094,83.051,3.73195853]
[1770768787696,10.8372,83.093,83.051,3.73195853]
[1770768788399,3.92639406,83.088,83.04,10.844]
[1770768788806,6.89637178,83.08,83.04,10.844]
[1770768789889,6.89637178,83.08,83.041,3.73195853]
[1770768790095,3.92639406,83.08,83.041,3.73195853]
[1770768791804,2.96997772,83.09,83.048,3.73195853]
[1770768792004,2.96997772,83.09,82.989,168.7888]
[1770768792005,3.92639406,83.105,83.051,3.73195853]
[1770768793705,3.92639406,83.105,83.058,3.73195853]
[1770768794307,3.92639406,83.099,83.058,3.73195853]
[1770768794802,3.92639406,83.097,83.047,10.8431]
[1770768795006,2.96997772,83.08,83.043,3.73195853]
[1770768795201,3.92639406,83.079,83.03,6.70193625]
[1770768795398,3.92639406,83.079,83.039,10.8441]
[1770768795601,3.92639406,83.079,83.03,3.73195853]
[1770768796306,3.92639406,83.059,83.01,2.96997772]
[1770768796511,3.92639406,83.059,83.004,3.73195853]
[1770768796807,3.92639406,83.059,82.983,98.36]
[1770768796808,3.92639406,83.059,83.011,3.73195853]
[1770768797707,3.92639406,83.059,83.011,14.57975853]
[1770768797907,3.92639406,83.059,83.012,3.73195853]
[1770768798808,3.92639406,83.057,83.013,10.8476]
[1770768799012,3.92639406,83.049,83.0,6.70193625]
[1770768799307,2.96997772,83.03,82.981,3.73195853]
[1770768799506,2.96997772,83.03,82.98,2.96997772]
[1770768799507,3.92639406,83.039,82.99,2.96997772]
[1770768799810,2.96997772,83.05,83.001,3.73195853]
[1770768800202,3.92639406,83.052,83.003,3.86907667]
[1770768800907,3.92639406,83.052,83.0,2.96997772]
[1770768800908,3.92639406,83.052,83.006,3.86907667]
[1770768801108,3.92639406,83.052,83.011,3.86907667]
[1770768801809,3.92639406,83.052,83.012,3.86907667]
[1770768802211,3.92639406,83.052,83.023,0.08166777]
[1770768804913,108.52,83.084,82.983,3.78525008]
[1770768804914,2.96997772,83.03,82.983,3.78525008]
[1770768805215,4.01448564,83.039,82.983,3.78525008]
[1770768806009,2.96997772,83.05,82.991,3.78525008]
[1770768806206,4.01448564,83.049,82.991,3.78525008]
[1770768806410,0.091361,83.019,82.991,3.78525008]
[1770768806714,4.01448564,83.049,83.006,10.8485]
[1770768807017,4.01448564,83.049,83.012,0.07686419]
[1770768807216,2.96997772,83.06,83.014,10.8474]
[1770768807511,2.96997772,83.06,83.012,3.86211427]
[1770768807512,2.96997772,83.06,83.015,3.78525008]
[1770768807712,6.98446336,83.06,83.015,3.78525008]
[1770768808016,4.01448564,83.059,83.015,3.78525008]
[1770768808217,4.01448564,83.059,83.029,0.07853398]
[1770768808919,99.16,83.078,82.983,96.1]
[1770768808920,4.01448564,83.049,82.997,3.78525008]
[1770768809120,4.01448564,83.039,82.99,2.96997772]
[1770768809516,4.01448564,83.039,82.99,6.7552278]
[1770768809716,4.01448564,83.039,82.983,96.1]
[1770768809717,4.01448564,83.039,83.006,10.8484]
[1770768810214,0.07699567,83.031,83.006,10.8484]
[1770768810810,0.07699567,83.031,83.003,3.78525008]
[1770768811820,0.07699567,83.031,83.015,10.8473]
[1770768815721,0.07699567,83.031,83.006,10.8484]
[1770768816317,0.07699567,83.031,83.003,3.78525008]
[1770768817724,0.07699567,83.031,82.999,10.8494]
[1770768819615,0.07699567,83.031,82.991,3.78525008]
[1770768824320,4.09148131,83.031,82.991,3.78525008]
[1770768824516,4.09148131,83.031,82.982,3.78525008]
[1770768825136,4.01448564,83.031,82.991,3.78525008]
[1770768826632,4.01448564,83.044,83.001,3.78525008]
[1770768827226,0.07779506,83.019,83.001,3.78525008]
[1770768827832,4.01448564,83.044,83.001,3.78525008]
[1770768828225,4.01448564,83.044,83.003,3.78525008]
[1770768829031,4.01448564,83.059,83.003,3.78525008]
[1770768830033,4.01448564,83.059,83.023,0.08147285]
[1770768832433,4.01448564,83.059,82.989,14.82011561]
[1770768832434,3.97343136,83.049,83.001,3.95315408]
[1770768832731,96.12,83.084,82.987,110.94011561]
[1770768832732,3.97343136,83.039,82.99,2.96997772]
[1770768833730,3.97343136,83.039,82.996,10.8498]
[1770768833932,0.09023391,83.023,82.996,10.8498]
[1770768835835,0.09023391,83.023,82.989,14.80375408]
[1770768837436,4.06366527,83.023,82.989,14.80375408]
[1770768838141,4.06366527,83.023,82.989,10.8506]
[1770768840644,4.06366527,83.023,82.989,14.80375408]
[1770768840847,4.06366527,83.023,82.962,24.32879097]
[1770768840848,0.09023391,83.023,82.995,3.95315408]
[1770768841145,0.00650047,83.023,83.001,3.95315408]
[1770768841343,3.97343136,83.047,83.001,3.95315408]
[1770768841644,3.97343136,83.047,83.001,4.04048115]
[1770768842741,3.97343136,83.045,83.005,10.8485]
[1770768843044,11.24283059,83.072,83.001,4.04048115]
[1770768843045,3.97343136,83.039,83.001,4.04048115]
[1770768843238,3.97343136,83.039,83.001,3.95315408]
[1770768843548,3.97343136,83.039,83.002,10.849]
[1770768843748,3.97343136,83.039,83.012,0.07784161]
[1770768851056,10.8444,83.038,83.012,0.07784161]
[1770768851754,3.97343136,83.037,83.001,3.95315408]
[1770768852158,0.08282841,83.033,83.001,3.95315408]
[1770768853053,10.8459,83.026,82.989,3.95315408]
[1770768853947,0.08656113,83.016,82.989,3.95315408]
[1770768857362,0.08656113,83.016,82.99,2.97217303]
[1770768857552,0.08656113,83.016,82.991,3.95315408]
[1770768864064,0.00871952,83.016,82.991,3.95315408]
[1770768864366,0.00871952,83.016,82.996,4.052629]
[1770768873469,4.08541712,83.016,82.985,4.052629]
[1770768873667,4.08541712,83.016,82.97,2.97217303]
[1770768873668,4.08541712,83.016,82.974,4.052629]
[1770768874175,4.0766976,83.016,82.974,4.052629]
[1770768874771,4.0766976,83.008,82.962,4.052629]
[1770768874973,4.0766976,83.002,82.962,4.052629]
[1770768875574,0.08168583,83.003,82.971,4.052629]
[1770768877575,10.8492,83.001,82.971,4.052629]
[1770768877766,0.08168583,83.003,82.971,4.052629]
[1770768878379,10.8494,82.999,82.971,4.052629]
[1770768878583,10.8494,82.999,82.96,7.02480203]
[1770768878777,0.08168583,83.003,82.957,14.82011561]
[1770768878778,4.0766976,82.998,82.957,14.82011561]
[1770768878980,4.0766976,82.998,82.952,14.82011561]
[1770768879186,4.0766976,82.998,82.92,29.6431062]
[1770768879187,4.0766976,82.989,82.944,14.82011561]
[1770768879383,4.0766976,82.989,82.939,4.052629]
[1770768879384,4.0766976,82.989,82.94,2.97217303]
[1770768879884,0.08946118,82.975,82.94,7.02480203]
[1770768880184,0.08946118,82.975,82.941,4.052629]
[1770768881080,4.0766976,83.029,82.961,4.052629]
[1770768881281,4.0766976,83.029,82.924,36.13]
[1770768881282,4.0766976,83.029,82.981,4.052629]
[1770768881585,10.8464,83.023,82.981,4.052629]
[1770768882485,10.8472,83.016,82.994,0.08136863]
[1770768885583,10.8461,83.025,82.994,0.08136863]
[1770768886289,4.0766976,83.024,82.994,0.08136863]
[1770768886589,10.8461,83.025,82.981,4.052629]
[1770768886590,4.0766976,83.022,82.981,4.052629]
[1770768887081,0.08930259,83.017,82.981,4.052629]
[1770768894195,4.15137045,83.017,82.981,4.052629]
[1770768899598,4.15137045,83.017,82.97,3.98390353]
[1770768899799,10.8474,83.015,82.97,3.98390353]
[1770768900102,4.06206786,83.014,82.97,3.98390353]
[1770768900304,4.06206786,83.014,82.972,3.98390353]
[1770768901107,0.08122285,83.001,82.972,3.98390353]
[1770768901701,0.08122285,83.001,82.975,3.98390353]
[1770768904208,0.08122285,83.001,82.976,10.8524]
[1770768904404,10.8465,83.022,82.981,3.98390353]
[1770768906410,11.24283059,83.058,82.98,0.09064549]
[1770768906411,4.06206786,83.018,82.98,0.09064549]
[1770768906910,4.06206786,83.018,82.969,3.98390353]
[1770768907404,4.06206786,83.018,82.991,0.09110818]
[1770768907801,4.06206786,83.016,82.978,10.8521]
[1770768908003,0.08983835,83.013,82.978,10.8521]
[1770768909711,0.08983835,83.013,82.972,3.98390353]
[1770768910212,4.06206786,83.016,82.972,3.98390353]
[1770768910803,0.0897134,83.001,82.972,3.98390353]
[1770768914713,4.06206786,83.016,82.972,3.98390353]
[1770768915010,4.06206786,83.016,82.971,10.853]
[1770768915011,4.06206786,83.016,82.979,3.98390353]
[1770768919614,4.06206786,83.016,82.98,10.8518]
[1770768920211,4.06206786,83.016,82.98,14.69749665]
[1770768920410,4.06206786,83.016,82.978,0.07959218]
[1770768920411,3.96561365,83.042,82.991,3.84569665]
[1770768920616,3.96561365,83.042,82.992,3.84569665]
[1770768921116,3.96561365,83.035,82.992,3.84569665]
[1770768921302,3.96561365,83.035,83.009,0.0793293]
[1770768922713,3.96561365,83.032,83.009,0.0793293]
[1770768923614,3.96561365,83.032,82.992,3.84569665]
[1770768923817,0.07745557,83.029,82.992,3.84569665]
[1770768935920,0.07745557,83.029,82.998,3.91887224]
[1770768936124,0.07745557,83.029,83.001,3.91887224]
[1770768936828,3.95162745,83.073,83.021,3.91887224]
[1770768937033,3.95162745,83.073,83.0,14.82011561]
[1770768937034,3.95162745,83.073,83.031,3.91887224]
[1770768938429,3.95162745,83.073,83.044,0.09010639]
[1770768938938,10.8406,83.067,83.044,0.09010639]
[1770768940233,3.95162745,83.073,83.044,0.09010639]
[1770768941837,10.8401,83.071,83.044,0.09010639]
[1770768942429,14.79172745,83.071,83.044,0.09010639]
[1770768942826,10.8404,83.068,83.044,0.09010639]
[1770768946136,3.95162745,83.07,83.044,0.09010639]
[1770768946435,10.8391,83.079,83.044,0.09010639]
[1770768946638,10.8391,83.079,83.044,4.00897863]
[1770768947742,14.79072745,83.079,83.044,4.00897863]
[1770768948040,3.95162745,83.079,83.044,4.00897863]
[1770768948341,3.95162745,83.089,83.051,3.91887224]
[1770768949435,3.95162745,83.089,83.062,0.08819268]
[1770768954055,3.95162745,83.089,83.029,96.1]
[1770768954056,4.07218468,83.079,83.036,3.76280314]
[1770768954345,4.07218468,83.069,83.025,3.76280314]
[1770768954644,4.07218468,83.069,83.01,2.97418549]
[1770768954645,4.07218468,83.059,83.011,3.76280314]
[1770768955239,4.07218468,83.059,83.027,10.8457]
[1770768955650,0.07832649,83.043,83.027,10.8457]
[1770768956046,0.07832649,83.043,82.985,14.82011561]
[1770768956047,2.97418549,83.04,82.991,3.76280314]
[1770768956236,4.07218468,83.039,82.991,3.76280314]
[1770768957241,0.08074022,83.023,82.991,3.76280314]
[1770768957741,0.08074022,83.023,83.005,10.8486]
[1770768960152,0.08074022,83.023,83.002,3.76280314]
[1770768960357,0.08074022,83.023,82.993,10.8502]
[1770768962358,0.08074022,83.023,82.991,3.76280314]
[1770768962359,4.1529249,83.023,82.991,3.76280314]
[1770768964155,4.1529249,83.023,82.867,558.56044778]
[1770768964156,4.07218468,83.009,82.96,2.97418549]
[1770768964348,4.07218468,83.009,82.961,3.76280314]
[1770768964552,4.07218468,83.009,82.97,2.97418549]
[1770768964747,4.07218468,83.046,82.991,3.76280314]
[1770768964956,4.07218468,83.046,83.001,3.76280314]
[1770768965355,4.07218468,83.059,83.011,3.76280314]
[1770768965565,4.07218468,83.059,83.021,3.76280314]
[1770768966863,4.07218468,83.059,83.024,3.76280314]
[1770768967059,4.07218468,83.059,83.032,0.07925029]
[1770768969867,4.07218468,83.082,83.041,3.76280314]
[1770768970064,4.07218468,83.089,83.041,3.76280314]
[1770768970262,4.07218468,83.089,83.051,3.76280314]
[1770768970859,4.07218468,83.1,83.062,0.07804543]
[1770768971259,4.07218468,83.099,83.062,0.07804543]
[1770768972162,4.07218468,83.099,83.062,3.84084857]
[1770768972466,4.07218468,83.099,83.065,10.8408]
[1770768972661,2.97033359,83.11,83.066,3.76280314]
[1770768973069,4.07218468,83.109,83.066,3.76280314]
[1770768973660,4.07218468,83.109,83.079,0.08084642]
[1770768999490,10.8352,83.108,83.079,0.08084642]
[1770768999693,4.06644712,83.107,83.079,0.08084642]
[1770769000896,4.06644712,83.104,83.079,0.08084642]
[1770769001496,10.8358,83.103,83.07,2.97033359]
[1770769001899,10.8358,83.103,83.083,0.07623749]
[1770769002296,14.90224712,83.103,83.083,0.07623749]
[1770769002697,4.06644712,83.102,83.083,0.07623749]
[1770769004110,0.09157693,83.101,83.066,3.76280314]
[1770769006201,4.15802405,83.101,83.066,3.76280314]
[1770769006705,4.15802405,83.101,83.032,14.82011561]
[1770769006706,4.06644712,83.097,83.055,3.94112092]
[1770769007008,4.06644712,83.097,82.999,29.78712053]
[1770769007009,4.06644712,83.079,83.021,3.94112092]
[1770769007203,4.06644712,83.079,83.04,2.97033359]
[1770769007399,4.06644712,83.079,83.037,10.8444]
[1770769008110,4.06644712,83.079,83.05,0.0808855]
[1770769010108,0.08522139,83.073,83.037,10.8444]
[1770769010409,3.9424069,83.072,83.031,3.94112092]
[1770769010607,3.9424069,83.072,83.025,10.8459]
[1770769010803,3.9424069,83.059,83.019,4.03376458]
[1770769011710,0.08625419,83.047,83.02,10.8466]
[1770769013505,0.08625419,83.047,83.019,4.03376458]
[1770769019809,0.08625419,83.047,83.021,4.03376458]
[1770769020916,3.9424069,83.059,83.026,0.08045168]
[1770769021318,3.9424069,83.059,83.021,4.03376458]
[1770769021721,3.9424069,83.059,83.021,14.88016458]
[1770769022319,3.9424069,83.059,83.032,0.08479321]
[1770769033220,3.9424069,83.059,83.032,10.92979321]
[1770769033522,3.9424069,83.059,83.032,0.08479321]
[1770769035424,3.9424069,83.053,83.017,10.847]
[1770769035730,3.9424069,83.053,83.011,4.03376458]
[1770769036631,3.9424069,83.053,83.018,4.03376458]
[1770769036831,3.9424069,83.053,83.021,4.03376458]
[1770769037330,3.9424069,83.063,83.021,4.03376458]
[1770769037534,0.07856319,83.045,83.021,4.03376458]
[1770769037830,3.9424069,83.063,83.023,4.03376458]
[1770769038628,3.9424069,83.063,83.022,10.8464]
[1770769038629,3.9424069,83.079,83.031,4.03376458]
[1770769038831,3.9424069,83.079,83.041,4.03376458]
[1770769039328,3.9424069,83.079,83.047,0.08646311]
[1770769039627,7.718e-05,83.081,83.061,4.03376458]
[1770769039829,7.718e-05,83.081,83.071,4.03376458]
[1770769041531,7.718e-05,83.081,83.074,10.8396]
[1770769041737,3.77574658,83.127,83.075,3.74222528]
[1770769041939,3.77574658,83.127,83.081,3.74222528]
[1770769042130,3.77574658,83.127,83.082,10.8386]
[1770769042334,3.77574658,83.127,83.083,3.74222528]
[1770769042733,3.77574658,83.127,83.096,0.07786843]
[1770769048742,3.92493372,83.119,83.073,10.8397]
[1770769049836,3.92493372,83.109,83.061,3.87369965]
[1770769050043,0.09038389,83.12,83.027,22.18865723]
[1770769050044,3.92493372,83.099,83.048,3.87369965]
[1770769050344,3.92493372,83.089,83.04,2.97044715]
[1770769050539,3.92493372,83.089,83.051,3.87369965]
[1770769050737,0.07779057,83.083,83.061,3.87369965]
[1770769051339,3.92493372,83.109,83.061,3.87369965]
[1770769051736,0.08131298,83.08,83.062,10.8411]
[1770769053349,0.08131298,83.08,83.062,14.71479965]
[1770769053549,0.08131298,83.08,83.063,3.87369965]
[1770769054450,3.92493372,83.109,83.063,3.87369965]
[1770769054650,3.92493372,83.109,83.063,3.95659417]
[1770769055752,3.92493372,83.109,83.065,3.87369965]
[1770769056448,190.81955269,83.182,83.076,3.87369965]
[1770769056449,3.92493372,83.121,83.076,3.87369965]
[1770769056646,3.92493372,83.121,83.063,0.08289452]
[1770769056647,3.92493372,83.121,83.081,3.87369965]
[1770769057248,3.92493372,83.143,83.091,3.87369965]
[1770769057451,3.92493372,83.13,83.093,0.07671825]
[1770769057956,3.92493372,83.13,83.091,3.87369965]
[1770769058450,3.92493372,83.13,83.103,0.0805645]
[1770769058754,10.8312,83.139,83.103,0.0805645]
[1770769063449,14.75613372,83.139,83.103,0.0805645]
[1770769063753,3.92493372,83.138,83.103,0.0805645]
[1770769063954,3.92493372,83.135,83.103,0.0805645]
[1770769065050,10.8307,83.143,83.103,3.95426415]
[1770769065356,3.92493372,83.143,83.103,3.95426415]
[1770769069052,3.92493372,83.151,83.108,3.87369965]
[1770769070158,3.92493372,83.151,83.121,0.08727273]
[1770769070357,3.93956866,83.149,83.121,0.08727273]
[1770769071266,10.83,83.148,83.121,0.08727273]
[1770769071768,3.93956866,83.141,83.121,0.08727273]
[1770769081569,8.54,83.15,83.121,4.13928984]
[1770769081976,12.47956866,83.15,83.121,4.13928984]
[1770769082375,3.93956866,83.149,83.121,0.08727273]
[1770769082781,3.93956866,83.16,83.122,4.05201711]
[1770769083074,3.93956866,83.171,83.131,4.05201711]
[1770769083266,2.97044715,83.18,83.131,4.05201711]
[1770769083267,473.91105661,83.166,83.131,4.05201711]
[1770769084078,3.93956866,83.166,83.14,0.09032228]
[1770769087277,3.93956866,83.179,83.14,4.14233939]
[1770769087470,2.8,83.188,83.141,4.05201711]
[1770769087779,2.8,83.188,83.151,4.05201711]
[1770769088371,3.93956866,83.219,83.171,2.77902177]
[1770769089175,3.93956866,83.219,83.173,2.77902177]
[1770769089776,3.93956866,83.219,83.187,0.09048302]
[1770769089977,3.93956866,83.209,83.187,0.09048302]
[1770769090376,2.97044715,83.22,83.187,0.09048302]
[1770769090572,6.91001581,83.22,83.187,0.09048302]
[1770769090772,3.93956866,83.209,83.162,2.6525398]
[1770769091380,3.93956866,83.209,83.158,10.8286]
[1770769091381,3.93956866,83.199,83.15,2.96017727]
[1770769091580,3.93956866,83.189,83.147,2.74302282]
[1770769092183,0.09161403,83.176,83.147,2.74302282]
[1770769092788,0.09161403,83.176,83.14,2.96017727]
[1770769092789,0.09161403,83.176,83.141,2.78441327]
[1770769094889,0.09161403,83.176,83.143,2.6949409]
[1770769095789,0.09161403,83.176,83.145,13.52931905]
[1770769095981,0.09161403,83.176,83.151,2.69901905]
[1770769096385,3.93956866,83.189,83.151,2.69901905]
[1770769096893,0.08393869,83.172,83.151,2.69901905]
[1770769097684,0.08393869,83.172,83.153,10.8293]
[1770769100688,4.13117072,83.172,83.134,2.63042844]
[1770769100881,4.13117072,83.172,83.055,168.6538]
[1770769100882,4.04723203,83.169,83.111,2.63042844]
[1770769101491,4.04723203,83.159,83.111,2.63042844]
[1770769101681,0.08048848,83.148,83.119,10.8336]
[1770769102086,0.08048848,83.148,83.111,2.63042844]
[1770769102787,4.12772051,83.148,83.111,2.63042844]
[1770769102983,4.12772051,83.148,83.105,95.96]
[1770769103181,4.12772051,83.148,83.106,2.69812489]
[1770769104092,4.12772051,83.148,83.116,10.834]
[1770769108598,4.12772051,83.148,83.111,2.6805643]
[1770769109392,4.12772051,83.148,83.112,10.8346]
[1770769109594,0.08048848,83.148,83.12,2.96017727]
[1770769109796,0.08048848,83.148,83.113,2.67388326]
[1770769109995,0.08048848,83.148,83.121,10.8334]
[1770769110191,0.08048848,83.148,83.113,2.67388326]
[1770769110591,0.08048848,83.148,83.122,2.67787709]
[1770769111298,0.08048848,83.148,83.105,95.96]
[1770769111299,0.08048848,83.148,83.131,2.67787709]
[1770769113802,3.97907613,83.173,83.134,2.65379011]
[1770769116003,2.96017727,83.17,83.124,10.8331]
[1770769116206,3.97907613,83.159,83.11,2.96017727]
[1770769116500,3.97907613,83.149,83.092,2.57087926]
[1770769116894,3.97907613,83.149,83.104,10.8357]
[1770769118203,3.97907613,83.139,83.104,10.8357]
[1770769121896,3.97907613,83.139,83.113,0.08071058]
[1770769128306,3.97907613,83.188,83.113,2.77108791]
[1770769128506,3.97907613,83.169,83.113,2.77108791]
[1770769128707,3.97907613,83.159,83.113,2.77108791]
[1770769128905,3.97907613,83.159,83.113,2.69037733]
[1770769129609,3.97907613,83.159,83.114,13.52477733]
[1770769130004,3.97907613,83.159,83.114,2.69037733]
[1770769131709,3.88387178,83.157,83.114,2.69037733]
[1770769132206,3.88387178,83.157,83.107,10.8352]
[1770769132410,3.88387178,83.157,83.08,96.0]
[1770769132411,3.88387178,83.147,83.102,2.67872644]
[1770769132613,0.08124504,83.144,83.102,2.67872644]
[1770769132808,3.88387178,83.143,83.102,2.67872644]
[1770769133717,3.88387178,83.143,83.103,10.8357]
[1770769134707,3.88387178,83.143,83.108,10.8351]
[1770769136712,3.88387178,83.143,83.114,10.8344]
[1770769137824,0.08124504,83.144,83.114,10.8344]
[1770769138118,0.08124504,83.144,83.115,2.72625047]
[1770769138622,0.08124504,83.144,83.121,2.72625047]
[1770769139223,3.88387178,83.166,83.121,2.72625047]
[1770769139522,3.88387178,83.166,83.123,2.72718788]
[1770769139820,0.09051441,83.141,83.123,2.72718788]
[1770769140520,0.09051441,83.141,83.112,10.8346]
[1770769140926,3.88387178,83.14,83.1,99.47655517]
[1770769141218,3.88387178,83.14,83.1,2.71655517]
[1770769141517,3.88387178,83.139,83.1,2.71655517]
[1770769142217,2.96426285,83.14,83.09,2.96426285]
[1770769142218,3.88387178,83.136,83.09,2.96426285]
[1770769142423,3.88387178,83.136,83.09,5.68081802]
[1770769142622,3.88387178,83.136,83.091,2.71655517]
[1770769143220,36.17,83.184,83.101,2.7578944]
[1770769143221,0.08424349,83.122,83.101,2.7578944]
[1770769143830,3.88387178,83.149,83.11,2.96426285]
[1770769144013,3.88387178,83.149,83.111,2.7578944]
[1770769147627,3.88387178,83.159,83.114,2.65275034]
[1770769148426,3.88387178,83.159,83.128,0.07736481]
[1770769148829,3.88387178,83.158,83.128,0.07736481]
[1770769149630,10.8288,83.157,83.128,0.07736481]
[1770769149828,2.96426285,83.15,83.102,2.62703944]
[1770769150131,3.88387178,83.149,83.102,2.62703944]
[1770769151332,3.88387178,83.149,83.103,10.8358]
[1770769151526,0.08214931,83.134,83.103,10.8358]
[1770769153236,3.96602109,83.134,83.092,13.54968215]
[1770769153828,3.88387178,83.132,83.092,2.71248215]
[1770769154535,3.88387178,83.132,83.093,10.8371]
[1770769155226,3.88387178,83.132,83.099,10.8363]
[1770769155626,3.88387178,83.132,83.092,2.71248215]
[1770769156834,3.88387178,83.132,83.094,10.837]
[1770769157928,3.88387178,83.132,83.094,13.56266598]
[1770769158329,3.88387178,83.132,83.095,2.72566598]
[1770769161538,10.8322,83.131,83.095,2.72566598]
[1770769163039,14.78132196,83.131,83.095,2.72566598]
[1770769163228,3.94912196,83.13,83.095,2.72566598]
[1770769164138,14.78182196,83.128,83.095,2.72566598]
[1770769164838,10.8334,83.122,83.095,2.72566598]
[1770769165043,14.78252196,83.122,83.086,102.78]
[1770769165442,14.78252196,83.122,83.09,2.96450057]
[1770769165838,0.09142578,83.112,83.09,2.96450057]
[1770769166645,0.09142578,83.112,83.09,5.71115035]
[1770769166833,0.09142578,83.112,83.091,2.77340314]
[1770769167038,0.01406097,83.112,83.091,2.77340314]
[1770769167234,0.01406097,83.112,83.1,2.96450057]
[1770769167440,0.01406097,83.112,83.1,5.73790371]
[1770769167746,0.01406097,83.112,83.101,2.77340314]
[1770769168246,3.94912196,83.144,83.101,2.77340314]
[1770769168442,21.65,83.187,83.1,2.96450057]
[1770769168443,3.94912196,83.169,83.111,2.77340314]
[1770769169745,3.94912196,83.163,83.132,0.08001767]
[1770769171044,10.8282,83.162,83.132,0.08001767]
[1770769171244,3.94912196,83.161,83.132,0.08001767]
[1770769173353,3.94912196,83.156,83.132,0.08001767]
[1770769173552,3.94912196,83.156,83.113,2.71268198]
[1770769173848,3.94912196,83.154,83.113,2.71268198]
[1770769174048,3.94912196,83.154,83.114,10.8343]
[1770769175645,3.94912196,83.152,83.102,2.66464134]
[1770769175851,3.94912196,83.149,83.102,2.66464134]
[1770769176257,3.94912196,83.145,83.102,2.66464134]
[1770769176654,0.09004465,83.134,83.102,2.66464134]
[1770769176852,4.03916661,83.134,83.097,2.68893463]
[1770769177357,4.03916661,83.134,83.101,2.68893463]
[1770769177757,4.03916661,83.134,83.104,10.8356]
[1770769180156,4.03916661,83.134,83.104,13.48128915]
[1770769180359,0.09004465,83.134,83.105,2.64568915]
[1770769183759,0.09004465,83.134,83.108,2.64544121]
[1770769183948,0.09004465,83.134,83.111,2.64544121]
[1770769184459,0.01002698,83.134,83.114,2.64544121]
[1770769185760,0.01002698,83.134,83.118,10.8338]
[1770769186262,0.01002698,83.134,83.119,2.64178525]
[1770769186464,0.01002698,83.134,83.121,2.64178525]
[1770769186664,0.01002698,83.134,83.121,17.46190086]
[1770769186855,0.01002698,83.134,83.122,2.62410644]
[1770769189268,3.94912196,83.175,83.126,2.59631583]